bitfinex/quotes_SOLUSD_20250919
["timestamp","ask_amount","ask_price","bid_price","bid_amount"]
[1758257496269,2.31286059,244.94,244.93,0.03]
[1758257497887,3.00286059,244.94,244.93,0.03]
[1758257498993,0.69,244.94,244.93,0.03]
[1758257499172,3.00286059,244.94,244.93,0.03]
[1758257501778,2.17240277,244.94,244.93,0.03]
[1758257503607,0.69,244.94,244.93,0.03]
[1758257503777,32.29,244.98,244.93,0.03]
[1758257503982,1.48240277,244.94,244.93,0.03]
[1758257506002,2.17240277,244.94,244.93,0.03]
[1758257506396,1.48240277,244.94,244.93,0.03]
[1758257507510,2.17240277,244.94,244.93,0.03]
[1758257508206,1.48240277,244.94,244.93,0.03]
[1758257515703,2.17240277,244.94,244.93,0.03]
[1758257517419,1.48240277,244.94,244.93,0.03]
[1758257519201,2.18240277,244.94,244.93,0.03]
[1758257519404,6.26503525,244.94,244.93,0.03]
[1758257520009,4.78263248,244.94,244.93,0.03]
[1758257520218,31.54961323,244.94,244.9,0.03]
[1758257520398,7.41201385,244.91,244.9,0.03]
[1758257521111,12.19514642,244.91,244.9,0.03]
[1758257521701,4.78313257,244.91,244.9,0.03]
[1758257521916,1.48240277,244.91,244.9,0.03]
[1758257523107,2.18240277,244.91,244.9,0.03]
[1758257524140,6.26553534,244.91,244.9,0.03]
[1758257528333,4.78313257,244.91,244.9,0.03]
[1758257528530,6.26553534,244.91,244.9,0.03]
[1758257532419,4.78313257,244.91,244.9,0.03]
[1758257532626,6.26553534,244.91,244.9,0.03]
[1758257540026,7.74793811,244.91,244.9,0.03]
[1758257543640,4.78313257,244.91,244.9,0.03]
[1758257543840,7.74793811,244.91,244.9,0.03]
[1758257544042,6.26553534,244.91,244.9,0.03]
[1758257551655,57.57506357,244.91,244.9,0.03]
[1758257554547,50.16304972,244.91,244.9,0.03]
[1758257554766,57.57506357,244.91,244.9,0.03]
[1758257560839,50.16304972,244.91,244.9,0.03]
[1758257561155,57.57506357,244.91,244.9,0.03]
[1758257561658,37.06553534,244.91,244.9,0.03]
[1758257561965,1.48240277,244.92,244.9,0.38]
[1758257562161,0.06,244.93,244.91,0.35]
[1758257563150,0.06,244.93,244.9,4.11315902]
[1758257563466,1.54240277,244.93,244.91,0.35]
[1758257563662,0.06,244.93,244.91,0.35]
[1758257568249,0.06,244.93,244.9,0.03]
[1758257568451,0.06,244.93,244.91,0.35]
[1758257570178,0.06,244.93,244.9,0.03]
[1758257570378,0.06,244.93,244.91,0.35]
[1758257570671,0.06,244.93,244.92,0.35]
[1758257573557,0.06,244.93,244.91,0.03]
[1758257573754,0.06,244.93,244.91,0.38]
[1758257574474,0.06,244.93,244.91,4.46309613]
[1758257575862,0.06,244.93,244.92,0.35]
[1758257578073,0.06,244.93,244.92,4.43296586]
[1758257579987,0.06,244.93,244.91,4.11313257]
[1758257580192,0.06,244.93,244.91,4.46313257]
[1758257581184,0.06,244.93,244.91,4.11313257]
[1758257581390,0.06,244.93,244.92,0.35]
[1758257581889,0.06,244.93,244.92,31.85]
[1758257582392,0.06,244.93,244.92,35.93296586]
[1758257582884,0.06,244.93,244.92,4.43296586]
[1758257583183,0.06,244.93,244.92,35.58296586]
[1758257583685,0.06,244.93,244.92,31.5]
[1758257584783,0.06,244.93,244.92,35.58296586]
[1758257586287,0.06,244.93,244.91,0.03]
[1758257586491,0.06,244.93,244.92,31.48]
[1758257588003,0.06,244.93,244.92,35.56296586]
[1758257588591,0.06,244.93,244.92,4.08296586]
[1758257588792,0.06,244.93,244.92,35.56296586]
[1758257589467,3.09079998,244.93,244.91,0.03]
[1758257589673,3.09079998,244.93,244.92,31.48]
[1758257589891,3.09079998,244.93,244.92,31.51]
[1758257590217,3.09079998,244.93,244.92,0.03]
[1758257590397,3.76079998,244.93,244.92,31.51]
[1758257590897,3.09079998,244.93,244.92,31.51]
[1758257591684,3.09079998,244.93,244.92,35.59296586]
[1758257591898,3.09079998,244.93,244.92,4.11296586]
[1758257592191,3.09079998,244.93,244.92,35.59296586]
[1758257592584,3.09079998,244.93,244.92,35.94296586]
[1758257592891,3.09079998,244.93,244.92,35.59296586]
[1758257593077,3.09079998,244.93,244.92,35.94296586]
[1758257594295,3.09079998,244.93,244.92,4.46296586]
[1758257594483,3.09079998,244.93,244.92,35.59296586]
[1758257595990,3.09079998,244.93,244.92,35.94296586]
[1758257596375,3.09079998,244.93,244.92,39.03376584]
[1758257597498,3.09079998,244.93,244.92,38.68376584]
[1758257598774,3.09079998,244.93,244.92,39.03376584]
[1758257599491,3.09079998,244.93,244.92,7.55376584]
[1758257599900,3.09079998,244.93,244.92,39.03376584]
[1758257600573,3.76079998,244.93,244.92,7.20376584]
[1758257600798,3.76079998,244.93,244.92,35.59296586]
[1758257601393,3.76079998,244.93,244.92,4.11296586]
[1758257601590,3.76079998,244.93,244.92,35.59296586]
[1758257602107,3.76079998,244.93,244.92,4.11296586]
[1758257602403,3.76079998,244.93,244.92,35.59296586]
[1758257602900,3.09079998,244.93,244.92,35.59296586]
[1758257604302,3.09079998,244.93,244.92,35.94296586]
[1758257607082,3.09079998,244.93,244.92,35.59296586]
[1758257607278,3.09079998,244.93,244.92,35.94296586]
[1758257607778,3.09079998,244.93,244.92,35.59296586]
[1758257607984,3.09079998,244.93,244.92,4.11296586]
[1758257608216,3.09079998,244.93,244.92,30.11296586]
[1758257608419,3.09079998,244.93,244.92,61.59296586]
[1758257609513,3.09079998,244.93,244.92,61.94296586]
[1758257610298,3.09079998,244.93,244.92,65.03376584]
[1758257610495,3.09079998,244.93,244.92,64.68376584]
[1758257611499,3.09079998,244.93,244.92,38.68376584]
[1758257612110,0.06,244.93,244.92,38.68376584]
[1758257616120,1e-08,244.93,244.92,52.91368299]
[1758257617825,1e-08,244.93,244.92,52.56368299]
[1758257618619,1e-08,244.96,244.95,26.0]
[1758257618827,1e-08,244.96,244.95,57.48]
[1758257619329,1e-08,244.96,244.95,59.21540005]
[1758257619724,1e-08,244.96,244.95,77.93602958]
[1758257620612,1e-08,244.96,244.95,77.58602958]
[1758257621735,1e-08,244.96,244.95,77.177783]
[1758257623330,1e-08,244.98,244.96,13.87991715]
[1758257623523,1e-08,244.98,244.97,45.7481304]
[1758257624236,1e-08,244.98,244.97,47.38221745]
[1758257625939,0.06,245.01,244.99,26.0]
[1758257626135,0.78,245.01,245.0,31.46]
[1758257626639,0.78,245.01,245.0,33.0940203]
[1758257627335,0.78,245.01,244.97,14.28746376]
[1758257627514,0.72,245.0,244.98,31.46]
[1758257627714,0.72,244.99,244.98,31.46]
[1758257628116,0.72,244.99,244.98,37.17631999]
[1758257631410,0.78,245.01,244.98,47.38123467]
[1758257631627,0.72,245.0,244.98,47.38123467]
[1758257631807,0.72,245.0,244.98,45.74688055]
[1758257632012,0.72,245.0,244.99,2.17660003]
[1758257632344,0.06,245.01,244.99,2.17660003]
[1758257632538,0.06,245.01,245.0,31.46]
[1758257633116,0.78,245.01,245.0,35.54163265]
[1758257634712,0.06,245.01,245.0,37.71823268]
[1758257640941,2.17660003,245.03,245.02,26.0]
[1758257641124,0.71,245.06,245.02,57.46]
[1758257642124,0.71,245.06,245.03,1.63375335]
[1758257642342,0.65,245.05,245.04,35.54096637]
[1758257642519,0.06,245.06,245.04,35.54096637]
[1758257642929,0.71,245.06,245.04,35.54096637]
[1758257643245,0.71,245.06,245.05,2.01539993]
[1758257643631,0.06,245.06,245.05,2.01539993]
[1758257644334,0.71,245.06,245.05,59.47539993]
[1758257644844,0.06,245.06,245.05,59.47539993]
[1758257645743,1e-08,245.06,245.05,33.47539993]
[1758257646626,1e-08,245.06,245.05,47.35531708]
[1758257647027,1e-08,245.06,245.05,51.43611691]
[1758257649232,0.65000001,245.06,245.05,51.43611691]
[1758257649562,1e-08,245.06,245.05,51.43611691]
[1758257653753,1e-08,245.06,245.05,51.84419689]
[1758257653962,1e-08,245.06,245.05,51.43611691]
[1758257654858,1e-08,245.06,245.05,51.41611691]
[1758257655567,1e-08,245.06,245.05,51.82419689]
[1758257655865,1e-08,245.06,245.05,20.38419689]
[1758257656055,1e-08,245.06,245.05,51.82419689]
[1758257656454,1e-08,245.06,245.05,20.38419689]
[1758257656661,1e-08,245.06,245.05,51.82419689]
[1758257658074,0.65,245.11,245.08,26.0]
[1758257658383,0.65,245.11,245.09,31.44]
[1758257658745,0.65,245.11,245.09,33.45539993]
[1758257658941,2.01539993,245.12,245.11,26.0]
[1758257659171,2.01539993,245.12,245.11,57.44]
[1758257659769,2.66539993,245.12,245.11,57.44]
[1758257659940,2.66539993,245.12,245.11,59.45539993]
[1758257660342,2.66539993,245.12,245.11,63.53520083]
[1758257661266,2.01539993,245.12,245.11,63.53520083]
[1758257661567,2.66539993,245.12,245.11,63.53520083]
[1758257662167,0.65,245.12,245.11,63.53520083]
[1758257665059,0.06,245.14,245.11,73.73470309]
[1758257665263,0.66,245.13,245.11,73.73470309]
[1758257665462,0.66,245.13,245.11,71.71930316]
[1758257665762,0.66,245.13,245.12,1.63321969]
[1758257667073,0.06,245.14,245.12,2.04118313]
[1758257667254,0.06,245.14,245.13,35.51946803]
[1758257667796,0.06,245.14,245.13,37.15262104]
[1758257667983,1e-08,245.14,245.13,51.03253819]
[1758257670783,0.06,245.17,245.16,26.0]
[1758257670962,0.06,245.17,245.16,57.44]
[1758257671559,0.06,245.17,245.16,59.072953]
[1758257671966,0.06,245.17,245.16,63.15192183]
[1758257672780,0.72,245.17,245.16,63.15192183]
[1758257673280,0.06,245.17,245.16,63.15192183]
[1758257673673,0.06,245.18,245.16,63.15192183]
[1758257675680,0.06,245.18,245.16,63.85192183]
[1758257675878,1e-08,245.18,245.17,13.87991715]
[1758257677072,1e-08,245.18,245.17,26.00252595]
[1758257677277,1e-08,245.18,245.17,26.70252595]
[1758257677581,1e-08,245.18,245.17,30.08132841]
[1758257677778,1e-08,245.18,245.17,61.50132841]
[1758257678579,1e-08,245.19,245.17,62.20132841]
[1758257678894,1e-08,245.19,245.18,14.57991715]
[1758257679394,1e-08,245.19,245.18,46.93260353]
[1758257680396,1e-08,245.19,245.18,51.01123963]
[1758257683194,1e-08,245.2,245.19,13.87991715]
[1758257683677,1e-08,245.2,245.19,14.57991715]
[1758257683885,1e-08,245.2,245.19,16.21240364]
[1758257684502,1e-08,245.2,245.19,20.29087339]
[1758257686897,1e-08,245.2,245.19,51.01087339]
[1758257687396,0.66000001,245.2,245.19,51.01087339]
[1758257687619,0.66000001,245.2,245.19,19.59087339]
[1758257687902,0.66000001,245.2,245.19,37.13095624]
[1758257692087,0.66000001,245.2,245.19,5.71095624]
[1758257692288,0.66000001,245.2,245.19,37.13095624]
[1758257693800,1e-08,245.2,245.19,37.13095624]
[1758257694488,1e-08,245.2,245.19,51.71087339]
[1758257695609,1e-08,245.2,245.19,51.74087339]
[1758257696700,1e-08,245.2,245.19,51.04087339]
[1758257697095,1e-08,245.2,245.19,51.69087339]
[1758257697586,1e-08,245.2,245.19,51.04087339]
[1758257700909,0.06,245.23,245.22,30.0779708]
[1758257701112,0.06,245.23,245.22,61.4779708]
[1758257701694,0.06,245.23,245.22,63.11045729]
[1758257704899,0.77,245.23,245.22,63.11045729]
[1758257705092,0.06,245.23,245.22,63.11045729]
[1758257705293,0.77,245.23,245.22,63.11045729]
[1758257705817,0.06,245.23,245.22,63.11045729]
[1758257710295,0.71,245.25,245.23,13.59559401]
[1758257710501,0.71,245.25,245.24,57.4]
[1758257710902,0.06,245.26,245.24,59.03235324]
[1758257711302,0.06,245.26,245.25,4.07747196]
[1758257711721,0.06,245.26,245.25,5.7098252]
[1758257711904,0.77,245.26,245.25,5.7098252]
[1758257712225,0.77,245.26,245.25,37.1098252]
[1758257712597,0.06,245.26,245.25,37.1098252]
[1758257712996,0.06,245.26,245.25,5.7098252]
[1758257713194,0.77,245.26,245.25,37.1098252]
[1758257714235,1e-08,245.26,245.25,50.98974235]
[1758257726533,1e-08,245.27,245.26,13.87991715]
[1758257726721,0.06,245.28,245.26,13.87991715]
[1758257727040,0.06,245.28,245.27,57.38]
[1758257727221,0.06,245.28,245.27,59.01215342]
[1758257728729,0.06,245.28,245.27,63.08929289]
[1758257729729,0.06,245.28,245.27,51.68921004]
[1758257730239,0.06,245.28,245.27,50.96921004]
[1758257730531,0.74,245.28,245.27,50.96921004]
[1758257730921,0.06,245.28,245.27,50.96921004]
[1758257731432,0.06,245.28,245.27,19.58921004]
[1758257731616,0.06,245.28,245.27,50.96921004]
[1758257741230,0.06,245.28,245.27,19.58921004]
[1758257741542,0.06,245.28,245.27,50.96921004]
[1758257745830,0.06,245.28,245.27,51.68921004]
[1758257747449,0.16,245.29,245.28,13.87991715]
[1758257747651,0.16,245.29,245.28,14.59991715]
[1758257748342,0.16,245.29,245.28,16.23193739]
[1758257748936,0.16,245.29,245.28,19.58891064]
[1758257749149,0.16,245.29,245.28,20.30891064]
[1758257750432,0.06,245.31,245.3,39.87991715]
[1758257750633,1e-08,245.32,245.31,13.87991715]
[1758257750834,1e-08,245.32,245.31,14.59991715]
[1758257751157,1e-08,245.32,245.31,20.30814574]
[1758257751456,1.78,245.39,245.34,26.0]
[1758257751659,1.78,245.39,245.35,32.08]
[1758257752356,1.78,245.39,245.36,1.78]
[1758257752532,1.78,245.39,245.37,31.36]
[1758257753138,1.78,245.39,245.38,4.07366431]
[1758257753343,1.78,245.39,245.38,8.14897607]
[1758257753956,1.84,245.39,245.38,8.14897607]
[1758257756150,1.84,245.39,245.38,4.07366431]
[1758257758476,1.84,245.39,245.38,8.14897607]
[1758257758649,1.84,245.39,245.38,4.07366431]
[1758257759249,1.84,245.39,245.38,8.14897607]
[1758257759447,1.88,245.39,245.38,8.14897607]
[1758257760546,1.88,245.39,245.38,4.07366431]
[1758257760746,3.35706492,245.39,245.36,31.36]
[1758257760948,1.47706492,245.37,245.36,1.88]
[1758257761149,0.72,245.37,245.36,1.88]
[1758257764662,2.19706492,245.37,245.36,1.88]
[1758257764872,2.19706492,245.37,245.34,31.36]
[1758257765058,2.19706492,245.36,245.34,31.36]
[1758257765272,0.72,245.35,245.34,31.36]
[1758257766280,0.72,245.35,245.33,33.55706492]
[1758257766464,1.47706492,245.36,245.33,33.55706492]
[1758257766660,0.72,245.34,245.33,33.55706492]
[1758257768072,0.72,245.34,245.27,4.79708154]
[1758257768073,2.19706492,245.34,245.27,4.79708154]
[1758257768269,2.19706492,245.33,245.28,31.36]
[1758257768467,0.72,245.32,245.31,26.0]
[1758257768772,0.72,245.32,245.31,57.36]
[1758257769164,4.9191887,245.37,245.31,57.36]
[1758257769467,1.47706492,245.35,245.31,57.36]
[1758257769664,0.72,245.34,245.31,57.36]
[1758257769855,0.72,245.34,245.3,30.07534016]
[1758257770049,0.72,245.34,245.31,57.36]
[1758257770050,1.47706492,245.34,245.31,57.36]
[1758257770255,2.19706492,245.34,245.31,57.36]
[1758257770557,0.72,245.33,245.31,57.36]
[1758257771478,0.72,245.33,245.31,57.39]
[1758257772585,0.72,245.32,245.31,0.03]
[1758257772788,2.19706492,245.32,245.31,31.39]
[1758257773087,2.19706492,245.32,245.31,0.03]
[1758257778477,0.72,245.32,245.31,0.03]
[1758257778786,2.19706492,245.32,245.31,0.03]
[1758257779189,0.72,245.34,245.31,0.03]
[1758257779381,1.47706492,245.32,245.31,0.03]
[1758257780161,0.72,245.33,245.31,0.03]
[1758257780395,1.47706492,245.32,245.31,0.03]
[1758257780988,2.19706492,245.32,245.31,0.03]
[1758257781381,1.47706492,245.34,245.31,0.72]
[1758257782186,1.47706492,245.34,245.31,2.35222002]
[1758257782397,0.84369999,245.35,245.31,1.66222002]
[1758257782569,2.32076491,245.35,245.32,4.76628798]
[1758257784681,1.56369999,245.35,245.32,4.07628798]
[1758257784864,2.32076491,245.35,245.32,4.07628798]
[1758257785060,2.32076491,245.35,245.32,4.76628798]
[1758257786982,2.99076491,245.35,245.32,4.07628798]
[1758257788283,2.99076491,245.35,245.31,4.10647466]
[1758257788479,2.99076491,245.35,245.31,4.82647466]
[1758257788891,1.51369999,245.35,245.31,4.82647466]
[1758257789093,2.99076491,245.35,245.31,4.82647466]
[1758257789289,0.84369999,245.35,245.32,32.06]
[1758257789498,0.84369999,245.35,245.32,31.34]
[1758257789802,0.84369999,245.35,245.34,39.87991715]
[1758257790189,0.84369999,245.35,245.34,40.59991715]
[1758257790497,0.84369999,245.35,245.34,42.23153796]
[1758257791675,0.84369999,245.35,245.34,46.30751415]
[1758257793894,0.84369999,245.35,245.34,77.64751415]
[1758257795096,0.06,245.37,245.34,87.83745464]
[1758257795291,0.06,245.37,245.35,0.72]
[1758257795488,0.06,245.37,245.36,31.34]
[1758257795873,0.06,245.37,245.36,32.97162082]
[1758257796072,0.06,245.37,245.36,37.76726477]
[1758257798811,0.73,245.37,245.36,58.97162082]
[1758257799002,0.73,245.37,245.36,57.34]
[1758257799507,0.06,245.37,245.36,57.34]
[1758257799706,0.06,245.37,245.36,26.0]
[1758257799907,0.06,245.37,245.36,31.34]
[1758257799908,0.73,245.37,245.36,31.34]
[1758257800306,2.20706492,245.37,245.36,31.34]
[1758257801102,2.20706492,245.37,245.34,31.34]
[1758257801424,2.20706492,245.37,245.33,2.20706492]
[1758257801425,0.67,245.36,245.33,2.20706492]
[1758257801589,1.47706492,245.34,245.32,31.34]
[1758257801790,2.14706492,245.33,245.31,0.03]
[1758257802003,1.47706492,245.32,245.31,31.37]
[1758257802599,2.14706492,245.32,245.31,31.37]
[1758257803109,0.67,245.32,245.31,31.37]
[1758257803300,2.14706492,245.32,245.31,31.37]
[1758257804487,1.47706492,245.32,245.31,31.37]
[1758257805117,1.47706492,245.33,245.31,31.37]
[1758257805317,2.14706492,245.34,245.31,31.37]
[1758257805496,1.47706492,245.33,245.31,31.37]
[1758257805892,2.30821274,245.33,245.31,0.03]
[1758257806111,2.30821274,245.33,245.31,31.37]
[1758257806911,0.67,245.34,245.31,31.37]
[1758257807124,2.30821274,245.33,245.31,32.09]
[1758257807893,2.30821274,245.33,245.31,31.37]
[1758257808109,0.67,245.35,245.31,31.37]
[1758257808326,2.30821274,245.33,245.31,32.09]
[1758257808900,2.30821274,245.34,245.31,32.09]
[1758257809314,2.30821274,245.34,245.32,0.72]
[1758257809508,0.84369999,245.36,245.32,0.72]
[1758257809818,2.30821274,245.34,245.31,31.37]
[1758257810002,2.30821274,245.34,245.31,32.09]
[1758257811012,2.30821274,245.34,245.31,36.16646307]
[1758257811218,2.30821274,245.34,245.32,0.72]
[1758257811511,2.36821274,245.34,245.32,0.72]
[1758257811717,0.06,245.34,245.31,35.44646307]
[1758257812017,0.06,245.34,245.33,0.72]
[1758257812232,0.06,245.34,245.33,32.06]
[1758257812592,0.06,245.34,245.33,31.34]
[1758257812793,0.06,245.34,245.33,32.06]
[1758257813902,0.06,245.34,245.33,36.13614233]
[1758257816124,0.06,245.34,245.33,32.06]
[1758257816621,3.04821274,245.34,245.33,31.34]
[1758257817002,2.36821274,245.34,245.33,31.34]
[1758257819528,0.06,245.34,245.33,31.34]
[1758257819730,2.36821274,245.34,245.33,31.34]
[1758257821933,2.36821274,245.34,245.31,0.03]
[1758257822227,2.36821274,245.34,245.32,31.32]
[1758257822228,0.74,245.34,245.32,31.32]
[1758257822399,2.30821274,245.33,245.32,31.32]
[1758257824409,2.36821274,245.34,245.32,31.32]
[1758257824607,2.36821274,245.34,245.32,32.02]
[1758257825422,2.36821274,245.34,245.31,0.03]
[1758257825604,2.36821274,245.34,245.32,32.02]
[1758257827532,2.36821274,245.34,245.32,0.7]
[1758257827713,2.36821274,245.34,245.32,32.02]
[1758257828437,0.06,245.34,245.33,0.7]
[1758257829718,0.06,245.34,245.33,4.77614233]
[1758257830418,0.06,245.34,245.33,5.06046547]
[1758257831230,0.06,245.34,245.33,6.69215284]
[1758257831545,0.06,245.34,245.33,28.33168737]
[1758257831749,0.06,245.34,245.33,59.65168737]
[1758257832423,0.06,245.34,245.33,63.7278297]
[1758257832826,3.04821274,245.34,245.32,0.03]
[1758257833124,0.06,245.34,245.32,0.03]
[1758257833535,0.06,245.34,245.32,31.35]
[1758257835221,0.74,245.34,245.32,31.35]
[1758257835437,0.06,245.34,245.32,31.35]
[1758257835617,0.74,245.34,245.32,31.35]
[1758257836341,0.06,245.34,245.32,31.35]
[1758257837037,2.36821274,245.34,245.32,31.35]
[1758257838149,0.06,245.34,245.32,31.35]
[1758257838456,0.06,245.34,245.32,32.05]
[1758257839744,0.06,245.34,245.32,31.35]
[1758257840046,0.06,245.34,245.33,31.32]
[1758257841723,0.06,245.34,245.33,32.02]
[1758257843234,0.06,245.34,245.33,34.81421274]
[1758257844544,0.06,245.34,245.33,38.89035507]
[1758257850947,0.06,245.34,245.33,52.77027222]
[1758257852656,0.06,245.34,245.33,38.89035507]
[1758257859343,0.06,245.34,245.33,3.49421274]
[1758257859547,0.06,245.34,245.33,60.09421274]
[1758257859859,0.73,245.34,245.33,60.09421274]
[1758257860061,0.73,245.34,245.33,34.09421274]
[1758257862739,0.06,245.34,245.33,34.09421274]
[1758257865359,0.06,245.34,245.33,34.12421274]
[1758257867472,0.73,245.34,245.33,34.12421274]
[1758257868060,0.06,245.34,245.33,34.12421274]
[1758257873485,0.06,245.34,245.33,38.20035507]
[1758257874957,0.06,245.34,245.33,34.12421274]
[1758257876282,0.06,245.34,245.33,2.82421274]
[1758257876458,0.06,245.34,245.33,34.12421274]
[1758257885085,0.06,245.34,245.33,38.90035507]
[1758257885879,0.06,245.34,245.33,38.20035507]
[1758257886379,0.80783786,245.36,245.33,2.82421274]
[1758257886588,1.52369999,245.35,245.34,31.3]
[1758257887085,0.84369999,245.35,245.34,35.37532811]
[1758257887968,3.00067146,245.35,245.33,0.03]
[1758257888274,2.95394294,245.34,245.33,0.03]
[1758257888661,17.70914266,245.34,245.33,0.03]
[1758257890466,21.78511885,245.34,245.33,0.03]
[1758257892187,16.23217119,245.34,245.33,0.03]
[1758257893983,21.78511885,245.34,245.33,0.03]
[1758257899202,26.21603326,245.34,245.33,0.03]
[1758257899783,57.51603326,245.34,245.33,0.03]
[1758257903523,39.59559401,245.32,245.31,0.03]
[1758257903679,26.28432314,245.29,245.28,1e-08]
[1758257903880,13.87991715,245.28,245.24,0.03]
[1758257904077,7.38485735,245.26,245.24,0.03]
[1758257904499,8.06485735,245.26,245.24,0.03]
[1758257904708,12.65955738,245.26,245.24,0.03]
[1758257906880,16.73686309,245.26,245.24,0.03]
[1758257910508,30.3324571,245.26,245.24,0.03]
[1758257910709,16.73686309,245.26,245.24,0.03]
[1758257910916,38.68485735,245.25,245.24,0.03]
[1758257911117,56.30645711,245.25,245.24,0.03]
[1758257911437,56.97645711,245.25,245.24,0.03]
[1758257913325,25.67645711,245.25,245.24,0.03]
[1758257913711,56.97645711,245.25,245.24,0.03]
[1758257915429,61.05392907,245.25,245.24,0.03]
[1758257919148,29.08392907,245.25,245.24,0.71]
[1758257919741,60.44392907,245.25,245.24,0.71]
[1758257920340,29.14392907,245.25,245.24,0.71]
[1758257920520,60.44392907,245.25,245.24,0.71]
[1758257921025,60.44392907,245.25,245.24,0.03]
[1758257921219,17.68159976,245.25,245.24,0.71]
[1758257921418,19.15857123,245.25,245.24,0.71]
[1758257924554,17.68159976,245.25,245.24,0.71]
[1758257924718,19.15857123,245.25,245.24,0.71]
[1758257925651,17.68159976,245.25,245.24,0.71]
[1758257925835,19.15857123,245.25,245.24,0.71]
[1758257926151,17.68159976,245.25,245.24,0.71]
[1758257926463,19.15857123,245.25,245.24,0.71]
[1758257927751,17.68159976,245.25,245.24,0.71]
[1758257934132,19.99134145,245.25,245.24,0.71]
[1758257935948,17.68159976,245.25,245.24,0.71]
[1758257936255,2.36974169,245.25,245.24,0.71]
[1758257940460,3.36974169,245.25,245.24,0.71]
[1758257944257,1.06,245.25,245.24,4.78763823]
[1758257944452,3.36974169,245.25,245.24,4.78763823]
[1758257945360,1.06,245.25,245.24,4.78763823]
[1758257945558,3.36974169,245.25,245.24,4.78763823]
[1758257945743,1.06,245.25,245.24,4.78763823]
[1758257951759,3.36974169,245.25,245.24,0.03]
[1758257956766,1.06,245.25,245.24,0.71]
[1758257957177,1.06,245.25,245.24,2.3425531]
[1758257958255,1.06,245.25,245.24,6.42019133]
[1758257960073,0.06,245.25,245.24,6.42019133]
[1758257963762,0.06,245.25,245.24,1.6625531]
[1758257964274,3.01974169,245.25,245.24,0.03]
[1758257964859,2.36974169,245.25,245.24,0.03]
[1758257968366,0.06,245.25,245.24,0.03]
[1758257968968,0.06,245.25,245.24,0.72]
[1758257971161,0.06,245.25,245.24,4.79763823]
[1758257971774,0.06,245.25,245.24,6.64133828]
[1758257973361,0.06,245.25,245.24,5.95133828]
[1758257974969,0.06,245.25,245.24,6.64133828]
[1758257975374,0.06,245.25,245.24,5.95133828]
[1758257975976,0.06,245.25,245.24,6.64133828]
[1758257985098,3.07974169,245.25,245.24,0.03]
[1758257985312,0.77,245.25,245.24,0.03]
[1758257985678,0.06,245.25,245.24,0.03]
[1758257986990,9.46695534,245.25,245.24,0.03]
[1758257987384,25.94425959,245.25,245.24,0.03]
[1758257989902,28.72093676,245.25,245.24,0.03]
[1758257993094,30.35415645,245.25,245.24,0.03]
[1758257993896,28.72093676,245.25,245.24,0.03]
[1758257994708,30.35415645,245.25,245.24,0.03]
[1758258000112,28.72093676,245.25,245.24,0.03]
[1758258000708,28.01093676,245.25,245.24,0.69]
[1758258000910,22.09400832,245.25,245.24,0.03]
[1758258001105,22.80400832,245.25,245.24,0.03]
[1758258001310,24.28324043,245.25,245.24,0.03]
[1758258001509,22.09400832,245.25,245.24,0.03]
[1758258002420,23.57324043,245.25,245.24,0.03]
[1758258002715,24.28324043,245.25,245.24,0.03]
[1758258002921,28.72093676,245.25,245.24,0.03]
[1758258003407,42.31653077,245.25,245.24,0.03]
[1758258003721,52.51021068,245.25,245.22,0.03]
[1758258003902,1.47923211,245.23,245.22,0.03]